Cogmind - Beta 13 @@@ ROGUE MODE // 2024.04.03 @ 13:40:51 Player: lazy_engineer Result: Destroyed by exploding Fusion Modulator Performance ------------- Evolutions (0) 0 Regions Visited (1) 200 Robots Destroyed (32) 160 Value Destroyed (480) 480 Prototype IDs (0) 0 Alien Tech Used (0) 0 Bonus (10) 10 TOTAL SCORE: 850 Bonus ------- High Alert Combat Kills 10 Cogmind --------- Core Integrity 0/250 Matter 216/300 Energy 100/100 System Corruption 0% Temperature Cool (16) Movement Treading (240) Ox1 Location -10/Materials Parts ------- > --- POWER (1) -------- Backup Power I > --- PROPULSION (2) --- Light Treads Light Treads > --- UTILITY (2) ------ High-capacity Storage Unit Transport Network Coupler > --- WEAPON (2) ------- EM Pulse Gun > --- INVENTORY (20) --- Ion Engine Wheel Wheel Small Storage Unit Small Storage Unit Large Storage Unit Signal Interpreter Mining Laser Peak State ------------ > --- POWER ------------ Ion Engine > --- PROPULSION ------- Light Treads Wheel > --- UTILITY ---------- Small Storage Unit Small Storage Unit > --- WEAPON ----------- EM Pulse Gun Light Assault Rifle > --- INVENTORY -------- Light Treads [Rating: 7] Favorites ----------- Power Backup Power I Engine Backup Power I Propulsion Light Treads Treads Light Treads Wheel Wheel Utility Small Storage Unit Storage Small Storage Unit Processor Transport Network Coupler Weapon Light Assault Rifle Energy Gun EM Pulse Gun Ballistic Gun Light Assault Rifle Special Weapon Mining Laser Build | -11 -10 ------- Run | Yrd Mat Slots Evolved . | . . Power . | . . Propulsion . | . . Utility . | . . Weapon . | . . Parts Attached 20 | 7 13 Power 1 | 1 . Engine 1 | 1 . Core . | . . Reactor . | . . Propulsion 7 | 2 5 Treads 4 | 1 3 Leg . | . . Wheel 3 | 1 2 Hover . | . . Flight . | . . Utility 5 | 2 3 Device . | . . Storage 4 | 2 2 Processor 1 | . 1 Hackware . | . . Protection . | . . Artifact . | . . Weapon 7 | 2 5 Energy Gun 3 | 1 2 Energy Cannon . | . . Ballistic Gun 3 | 1 2 Ballistic Cannon . | . . Launcher . | . . Special Weapon 1 | . 1 Impact Weapon . | . . Slashing Weapon . | . . Piercing Weapon . | . . Special Melee Weapon . | . . Unidentified Prototypes . | . . Parts Lost 4 | . 4 Power 1 | . 1 Propulsion . | . . Utility . | . . Weapon 3 | . 3 Highest Loss Streak 2 | . 2 To Critical Strikes . | . . Average Slot Usage (%) 92 | . 92 Engine 7 | . 7 Treads 16 | . 16 Wheel 11 | . 11 Storage 18 | . 18 Processor 9 | . 9 Energy Gun 9 | . 9 Ballistic Gun 17 | . 17 Naked Turns . | . . Heaviest Build 44 | 18 44 Greatest Support 40 | 10 40 Greatest Overweight (x) 4 | 1 4 Average Overweight (x) 1 | . 1 Largest Inventory Capacity 20 | 8 20 Average Capacity 12 | 7 13 Most Carried 8 | 4 8 Average Carried 4 | 2 5 Final Capacity 20 | 8 20 Final Carried 8 | 4 8 Class Distribution -------------------- 100% | Mutant Dominant Class ---------------- Mutant | -10/Materials Resources | -11 -10 ----------- Run | Yrd Mat Matter Collected 440 | 188 252 Remotely . | . . Salvage Created 832 | 148 684 Parts 59 | 13 46 Haulers Intercepted 2 | . 2 Recyclers Shooed 1 | . 1 Parts Field Recycled . | . . Retrieved Matter . | . . Parts Self-Destructed . | . . Prevented . | . . Kills | -11 -10 ------- Run | Yrd Mat Combat Hostiles Destroyed 16 | . 16 Guns 16 | . 16 Classes Destroyed 9 | 2 7 Worker 2 | . 2 Builder 1 | . 1 Tunneler 5 | 5 . Hauler 2 | . 2 Recycler 2 | 1 1 Operator 3 | . 3 Watcher 1 | . 1 Swarmer 9 | . 9 Grunt 7 | . 7 Best Kill Streak 5 | 5 5 Combat Bots Only 3 | . 3 Max Kills in Single Turn 2 | 1 2 Gunslinging . | . . Exploded . | . . Melee . | . . Uniques/NPCs Destroyed . | . . Combat | -11 -10 -------- Run | Yrd Mat Hostile Shots Fired 90 | . 90 Missed 21 | . 21 Damage Taken 966 | 31 935 Core 295 | 31 264 Absorbed by Shields . | . . Regen/Repaired (Parts) 194 | . 194 Core Remaining (%) 87 | 87 . Volleys Fired 106 | 19 87 Largest 2 | 2 2 Hottest 100 | 60 100 Shots Fired 206 | 38 168 Gun 205 | 38 167 Cannon . | . . Launcher . | . . Special 1 | . 1 Kinetic 144 | 19 125 Thermal 1 | . 1 Explosive . | . . Electromagnetic 61 | 19 42 Robot Hit Streak 10 | 5 10 Robot Miss Streak 7 | 3 7 Penetration Max . | . . Secondary Targets . | . . Shots Hit Robots 116 | 19 97 Core Hits 55 | 10 45 Critical Kills 1 | . 1 Critical Parts Destroyed 1 | . 1 Critical Strikes 2 | . 2 Destroy 2 | . 2 Melee Attacks . | . . Impact . | . . Slashing . | . . Piercing . | . . Sneak Attacks . | . . Combat Hostiles . | . . Follow-up Attacks . | . . Damage Inflicted 1570 | 269 1301 Guns 1162 | 196 966 Cannons . | . . Explosions 408 | 73 335 Melee . | . . Ramming . | . . Kinetic 704 | 88 616 Thermal 408 | 73 335 Explosive . | . . Electromagnetic 458 | 108 350 Impact . | . . Slashing . | . . Piercing . | . . Highest Corruption . | . . Average Corruption . | . . Corruption Purged . | . . Corruption Blocked . | . . Overload Shots . | . . Overflow Damage 50 | . 50 Projectiles . | . . Explosions 50 | . 50 Melee . | . . Knockbacks . | . . Impact . | . . Kinetic . | . . Secondary . | . . Self-Inflicted Damage 191 | 31 160 Shots 5 | 1 4 Rammed . | . . Targets Rammed . | . . Kicked . | . . Crushed . | . . Highest Temperature 72 | 40 72 Average Temperature 19 | 16 21 Received Heat Transfer 240 | . 240 Siege Activations . | . . Robots Corrupted . | . . Combat Hostiles . | . . Parts Fried 2 | . 2 Impact Corruptions . | . . Robots Melted . | . . Combat Hostiles . | . . Parts Melted 1 | 1 . Heat Transferred 450 | 50 400 Parts Sabotaged . | . . Parts Stolen . | . . Parts Stripped . | . . Power Chain Reactions 4 | 2 2 Alert | -11 -10 ------- Run | Yrd Mat Peak Influence 521 | 30 521 Initial 19 | . 19 Average 265 | 15 309 Maximum Alert Level 2 | . 2 Low Security (%) 34 | 100 22 Level 1 33 | . 38 Level 2 32 | . 38 Level 3 . | . . Level 4 . | . . Level 5 . | . . High Security . | . . Max Security . | . . Squads Dispatched 7 | . 7 Investigation 4 | . 4 Extermination . | . . Reinforcement 3 | . 3 Assault . | . . Garrison . | . . Intercept . | . . Searches Triggered . | . . Construction Impeded . | . . Haulers Reinforced . | . . Active Scanning Responses . | . . Cargo Convoy Interrupts . | . . Stealth | -11 -10 --------- Run | Yrd Mat Distress Signals 3 | . 3 Communications Jammed . | . . Distress Signals . | . . Times Spotted 30 | . 30 Peak Tracking Total 7 | . 7 Tactical Retreats 4 | . 4 Traps | -11 -10 ------- Run | Yrd Mat Traps Triggered 1 | . 1 Indirectly . | . . Trap Hack Attempts . | . . Triggered . | . . Disarmed . | . . Reprogrammed . | . . Reused . | . . Traps Extracted . | . . Installed . | . . Triggered . | . . Objects Rigged 1 | . 1 Machines | -11 -10 ---------- Run | Yrd Mat Machines Disabled 3 | . 3 Max in Single Turn 2 | . 2 Machines Repaired . | . . Machines Dismantled . | . . Machines Sabotaged . | . . Overloaded Fab Kills . | . . Hacking | -11 -10 --------- Run | Yrd Mat Machines Accessed 8 | . 8 Terminals 5 | . 5 Fabricators . | . . Repair Stations 1 | . 1 Recycling Units 2 | . 2 Scanalyzers . | . . Garrison Access . | . . Total Hacks 36 | . 36 Successful 24 | . 24 Failed 12 | . 12 Catastrophic 1 | . 1 Database Lockouts . | . . Manual 22 | . 22 Terminals 24 | . 24 Fabricators . | . . Repair Stations 9 | . 9 Recycling Units 3 | . 3 Scanalyzers . | . . Garrison Access . | . . Terminal Hacks 7 | . 7 Robot Analysis 2 | . 2 Terminal Index 1 | . 1 Locate Traps 1 | . 1 Hauler Manifests 1 | . 1 Zone Layout 2 | . 2 Fabricator Hacks . | . . Repair Station Hacks 7 | . 7 Scan Component 3 | . 3 Repair 3 | . 3 Refit 1 | . 1 Recycling Unit Hacks 1 | . 1 Report Inventory 1 | . 1 Scanalyzer . | . . Garrison Access Hacks . | . . Unauthorized Hacks 9 | . 9 Terminals 7 | . 7 Track 3 | . 3 Botnet 2 | . 2 Detonate 1 | . 1 Operators 1 | . 1 Fabricators . | . . Repair Stations . | . . Recycling Units 2 | . 2 Tunnel 2 | . 2 Scanalyzers . | . . Garrison Access . | . . Data Cores Recovered . | . . Used . | . . Hacking Detections 7 | . 7 Full Trace Events 4 | . 4 Feedback Events . | . . Feedback Blocked . | . . Robot Schematics Acquired . | . . Robots Built . | . . Authchips . | . . Time . | . . Total Robot Build Rating . | . . Part Schematics Acquired . | . . Parts Built . | . . Authchips . | . . Time . | . . Total Part Build Rating . | . . Parts Repaired 3 | . 3 Time 78 | . 78 Parts Recycled . | . . Recycled Matter . | . . Retrieved Matter . | . . Retrieved Components . | . . Parts Scanalyzed . | . . Part Schematics Acquired . | . . Parts Damaged . | . . Bothacking | -11 -10 ------------ Run | Yrd Mat Used RIF Installer . | . . Robots Hacked . | . . Non-combat . | . . Combat . | . . Robot Hacks Applied . | . . Relay Couplers Released . | . . Fabnet Peak Effective % . | . . Robots Rewired . | . . Allies Hacked . | . . Hacks Repelled . | . . Allies | -11 -10 -------- Run | Yrd Mat Total Allies . | . . Largest Group . | . . Highest-Rated Group . | . . Highest-Rated Ally . | . . Total Orders . | . . Ally Attacks . | . . Total Damage . | . . Kills . | . . Allies Corrupted . | . . Allies Melted . | . . Intel | -11 -10 ------- Run | Yrd Mat Robot Analysis Total 2 | . 2 Derelict Logs Recovered . | . . Drone Launches . | . . Drone Recoveries . | . . Exploration | -11 -10 ------------- Run | Yrd Mat Turns Passed 1072 | 160 912 Spaces Moved 523 | 98 425 Core 6 | 6 . Treads 66 | . 66 Legs . | . . Wheels 451 | 92 359 Hover . | . . Flight . | . . Fastest Speed 50 | 50 95 Average Speed 117 | 91 122 Slowest Speed 240 | 95 240 Overloaded Moves . | . . Propulsion Burnouts . | . . Robots Hopped . | . . Cave-ins Triggered . | . . Exploration Rate (%) 40 | 4 77 Regions Visited 1 Branch Regions . Pre-discovered Areas 2 | . 2 Known Exits Taken . | . . Unknown Exits Taken 1 | 1 . Scrap Searched . | . . Spaces Dug 1 | . 1 Terrain Destroyed 34 | 7 27 Melee . | . . Projectile 1 | . 1 AOE 33 | 7 26 Terrain Rammed . | . . Walls Destroyed . | . . Machines Disabled . | . . Actions | -11 -10 --------- Run | Yrd Mat Total 798 | 134 664 Wait 128 | . 128 Move 522 | 97 425 Hop . | . . Pick Up 21 | 11 10 Fast Attach . | . . Attach 10 | 7 3 Detach . | . . Swap 10 | . 10 Drop 1 | . 1 Fire 106 | 19 87 Melee . | . . Ram . | . . Kick . | . . Crush . | . . Escape Stasis . | . . Rewire . | . . Trap . | . . Miscellaneous . | . . Route ------- -11/Scrapyard -10/Materials (discovered 2 exits: [*Min x2]) History --------- Turn | Location | Event 14 | -11/Scrapyard | Discovered new exit (range 15) 161 | -11/Scrapyard | Entered Materials 221 | -10/Materials | Discovered new exit (range 16) 322 | -10/Materials | Build established: Mutant 411 | -10/Materials | Discovered new exit (range 7) 731 | -10/Materials | Repaired Wheel 759 | -10/Materials | Repaired Lgt. Treads 787 | -10/Materials | Repaired Wheel 936 | -10/Materials | Core integrity fell below 50% 1073 | -10/Materials | Destroyed by exploding Fusion Modulator Last Messages --------------- Matter reserves: 23 Inventory: Med. Storage Unit (100%) Med. Storage Unit (100%) Med. Storage Unit (100%) Corrupted Hover Unit (80%) Visual Processing Unit (81%) Aluminum Leg (80%) Corrupted Sml. Laser (91%) Corrupted Heat Sink (96%) Corrupted Aluminum Leg (66%) Corrupted Aluminum Leg (62%) >>Force(Tunnel) DISCOVERED[-5/Hub_04(d)] 01009_ ALERT: Suspicious activity at Recycling Unit M001. Dispatching Investigation squad. 01016_ K-01 Serf collects debris. 01066_ G-34 Mercenary destroyed. 01067_ Lgt. Assault Rifle destroyed. 01073_ Fusion Modulator explodes. Map ----- +----------------------------------------------------+ | + """ # #??????????? | | # # = #??????????? | | # # ###############??????????? | | # " " # #????????????????????????? | | + "R" # #????????????????????????? | | # """ # #????????????????????????? | | #+#### ### ######## #????????????????????????? | | %# # #"# ####???# #????????????????????????? | | " #### ## "#???# ########?????????????????? | | " #??# ## ""#???# # #?????????????????? | | " #### ## ||#???# # #?????????????????? | | + ## < ""#???# # #?????????????????? | | #### ## ||#???# + "Y" #?????????????????? | | ###??# ## ""#???# # """ #?????????????????? | | ?????# ## "#???# # #?????????????????? | | ??####+### ####???# ########?????????????????? | | ??# # ##T##### #????????????????????????? | | ??# ! +%% ^ #????????????????????????? | | ??# #^^ r #????????????????????????? | | ??# """ # ^ !] t #????????????????????????? | | ??# """ # ^!]%r### ##########???????????????? | | ??# """ # %""# # #???????????????? | | ??######## Y"# # #???????????????? | | ?????????#^ ""# # [ #???????????????? | | ????????## ### # #???????????????? | | ????????#" !! %### #@ #???????????????? | | #########T !! T## %g= #???????????????? | | ##" ! ### =#* #???????????????? | | """"" ### #?# #= #???????????????? | | """"" + #?# # #???????????????? | | """"" ####+#######?# ##########???????????????? | | # #???# ????????????????????????? | | """"" # #???# ????????????????????????? | | """"" # #???# ????????????????????????? | | """"" # ##### ????????????????????????? | | # + ????????????????????????? | | ######## ##### ????????????????????????? | | ???????# #???### ????????????????????????? | | ##?????# #?????# ????????????????????????? | | #?????# #?????# ????????????????????????? | | #?????##########?????# ????????????????????????? | | "#???????# ####### ????????????????????????? | | ?????????????????????????????????????????????????? | | ?????????????????????????????????????????????????? | | ?????????????????????????????????????????????????? | | ?????????????????????????????????????????????????? | | ?????????????????????????????????????????????????? | | ?????????????????????????????????????????????????? | | ?????????????????????????????????????????????????? | | | +----------------------------------------------------+ Best States ------------- Heat Dissipation 25 Energy Generation 10 Energy Capacity 250 Matter Stores 254 Matter Capacity 300 Sight Range 16 Terrain Scan Density 10 Evasion (%) 41 Recoil Reduction 2 Item Schematics ----------------- None Robot Schematics ------------------ None Fabricated ------------ Nothing Alien Tech Used ----------------- None Achievements -------------- None Challenges ------------ None Game ------ Seed BeamServoVibroblade Manual? 0 Play Time 00:14:22 Cumulative 19.7 hours Start 2024.04.03 @ 13:27:50 End 2024.04.03 @ 13:40:51 Sessions 1 Manual Loads 0 Difficulty Rogue Special Mode None Game No. 39 Rogue 39 Adventurer 0 Explorer 0 Win Type - Total 0 Types 0/0/0/0/0/0/0/0/0 Lore% 17 Gallery% 20 Achievement% 19 Wizard Run 0 Options --------- Layout 0 ASCII 0 Keyboard 0 Movement Mouse Keybinds 0 Fullscreen 1 Font 24/Smallcaps Map View 76x50 Zoom Use 0% Tactical HUD 1 Map Filters NONE Filters NONE Steam 1 RUN: 28417a1e-75a6-4861-b4e1-c600881b07ee